[Event "Romanian-ch Open 2022"]
[Site "Eforie Nord"]
[Date "2022.02.25"]
[Round "7.30"]
[White "Capragiu, Matei-Stefan"]
[Black "Craciun, Gheorghe"]
[Result "0-1"]
[ECO "A96"]
[WhiteElo "1902"]
[BlackElo "1655"]
[Annotator "NA"]
[PlyCount "148"]
[EventDate "2022.02.20"]
[EventType "swiss"]
[EventCountry "ROU"]
[SourceTitle "playchess.com"]
[Source "ChessBase"]
[SourceQuality "1"]
[TimeControl "40/5400+30:900+30"]

1. d4 {[%emt 0:00:06]} f5 {[%emt 0:00:06]} 2. g3 {[%emt 0:00:07]} Nf6 {[%emt 0:00:08]} 3. Bg2 {[%emt 0:00:08]} e6 {[%emt 0:00:06]} 4. c4 {[%emt 0:00:10]} d6 {[%emt 0:00:07]} 5. Nf3 {[%emt 0:00:20]} Be7 {[%emt 0:00:06]} 6. O-O {[%emt 0:00:20]} O-O {[%emt 0:00:03]} 7. b3 {[%emt 0:01:00]} Ne4 {[%emt 0:00:32]} 8. Bb2 {[%emt 0:00:52]} Bf6 {[%emt 0:00:13]} 9. Nfd2 {[%emt 0:01:39]} d5 {[%emt 0:01:17]} 10. Nxe4 {[%emt 0:01:54]} fxe4 {[%emt 0:00:17]} 11. e3 {[%emt 0:00:56]} Nc6 {[%emt 0:00:48]} 12. f3 {[%emt 0:01:03]} exf3 {[%emt 0:01:06]} 13. Bxf3 {[%emt 0:00:55]} Ne7 {[%emt 0:00:37]} 14. Na3 {[%emt 0:22:08]} c6 {[%emt 0:02:10]} 15. Qd3 {[%emt 0:01:50]} dxc4 {[%emt 0:13:31]} 16. bxc4 {[%emt 0:06:27]} e5 {[%emt 0:00:26]} 17. Rad1 {[%emt 0:12:03]} exd4 {[%emt 0:00:13]} 18. exd4 {[%emt 0:01:47]} Bh3 {[%emt 0:01:49]} 19. Rf2 {[%emt 0:04:09]} Qd7 {[%emt 0:00:45]} 20. d5 {[%emt 0:01:41]} Rad8 {[%emt 0:00:29]} 21. Bxf6 {[%emt 0:05:56]} Rxf6 {[%emt 0:00:02]} 22. Rfd2 {[%emt 0:02:00]} Rdf8 {[%emt 0:00:12]} 23. Bg2 {[%emt 0:07:02]} Bxg2 {[%emt 0:00:02]} 24. Kxg2 {[%emt 0:02:48]} Qd6 {[%emt 0:10:46]} 25. Nc2 {[%emt 0:02:08]} cxd5 {[%emt 0:01:45]} 26. cxd5 {[%emt 0:01:05]} Ng6 {[%emt 0:01:24]} 27. Qe4 {[%emt 0:05:59]} Ne5 {[%emt 0:02:01]} 28. Nd4 {[%emt 0:00:39]} Nc4 {[%emt 0:01:39]} 29. Re2 {[%emt 0:02:33]} Qb6 {[%emt 0:03:30]} 30. Rde1 {[%emt 0:06:10]} Nd6 {[%emt 0:00:18]} 31. Qe3 {[%emt 0:03:02]} Qc5 {[%emt 0:01:35]} 32. Nb3 {[%emt 0:02:58]} Qxd5+ {[%emt 0:00:17]} 33. Kg1 {[%emt 0:00:05]} a6 {[%emt 0:04:28]} 34. Qd4 {[%emt 0:02:30]} Qxd4+ {[%emt 0:03:11]} 35. Nxd4 {[%emt 0:00:01]} b5 {[%emt 0:00:32]} 36. a4 {[%emt 0:02:29]} bxa4 {[%emt 0:00:13]} 37. Ra1 {[%emt 0:00:26]} Nb5 {[%emt 0:00:27]} 38. Ne6 {[%emt 0:00:52]} Re8 {[%emt 0:00:22]} 39. Nf4 {[%emt 0:00:16]} Rxe2 {[%emt 0:00:26]} 40. Nxe2 {[%emt 0:00:00]} a3 {[%emt 0:00:00]} 41. Nf4 {[%emt 0:00:28]} Rd6 {[%emt 0:01:20]} 42. Kf2 {[%emt 0:00:25]} g5 {[%emt 0:00:22]} 43. Ne2 {[%emt 0:00:30]} Rd2 {[%emt 0:00:49]} 44. Ke3 {[%emt 0:00:14]} Rb2 {[%emt 0:00:22]} 45. Kd3 {[%emt 0:00:56]} g4 {[%emt 0:01:14]} 46. Rc1 {[%emt 0:02:45]} a2 {[%emt 0:00:38]} 47. Ra1 {[%emt 0:00:14]} Kf7 {[%emt 0:01:24]} 48. Nc1 {[%emt 0:02:33]} Rxh2 {[%emt 0:00:14]} 49. Rxa2 {[%emt 0:00:34]} Rxa2 {[%emt 0:00:12]} 50. Nxa2 {[%emt 0:00:01]} Ke6 {[%emt 0:00:29]} 51. Ke4 {[%emt 0:00:07]} h5 {[%emt 0:00:33]} 52. Kf4 {[%emt 0:00:48]} Kf6 {[%emt 0:00:08]} 53. Nb4 {[%emt 0:01:09]} Nc7 {[%emt 0:02:34]} 54. Nd3 {[%emt 0:01:43]} Ne6+ {[%emt 0:04:22]} 55. Ke4 {[%emt 0:01:00]} a5 {[%emt 0:01:09]} 56. Kd5 {[%emt 0:01:35]} a4 {[%emt 0:00:37]} 57. Kc4 {[%emt 0:00:21]} a3 {[%emt 0:00:09]} 58. Kb3 {[%emt 0:02:55]} Nd4+ {[%emt 0:00:11]} 59. Kxa3 {[%emt 0:00:03]} Ne2 {[%emt 0:00:10]} 60. Kb2 {[%emt 0:00:22]} Nxg3 {[%emt 0:00:13]} 61. Kc1 {[%emt 0:00:58]} h4 {[%emt 0:00:13]} 62. Kd2 {[%emt 0:01:18]} h3 {[%emt 0:00:15]} 63. Ke3 {[%emt 0:00:52]} Kg5 {[%emt 0:01:04]} 64. Nf2 {[%emt 0:00:56]} h2 {[%emt 0:00:24]} 65. Kd3 {[%emt 0:01:02]} h1=Q {[%emt 0:00:21]} 66. Nxh1 {[%emt 0:00:06]} Nxh1 {[%emt 0:00:08]} 67. Ke2 {[%emt 0:00:05]} Ng3+ {[%emt 0:00:20]} 68. Kf2 {[%emt 0:00:06]} Kf4 {[%emt 0:00:13]} 69. Kg2 {[%emt 0:00:04]} Nf5 {[%emt 0:00:13]} 70. Kf2 {[%emt 0:00:10]} g3+ {[%emt 0:00:09]} 71. Kg2 {[%emt 0:00:02]} Kg4 {[%emt 0:00:15]} 72. Kg1 {[%emt 0:01:07]} Kf3 {[%emt 0:00:27]} 73. Kh1 {[%emt 0:00:41]} g2+ {[%emt 0:00:12]} 74. Kg1 {[%emt 0:00:01]} Nd6 {[%emt 1:03:07]} 0-1

[Event "Romanian-ch Open 2022"]
[Site "Eforie Nord"]
[Date "2022.02.26"]
[Round "8.7"]
[White "Bonte, Andrei-Mihai"]
[Black "Ghimpu, Samuel-Timotei"]
[Result "0-1"]
[ECO "D38"]
[WhiteElo "2349"]
[BlackElo "2420"]
[Annotator "ChessBase"]
[PlyCount "41"]
[EventDate "2022.02.20"]
[EventType "swiss"]
[EventCountry "ROU"]
[SourceTitle "playchess.com"]
[Source "ChessBase"]
[SourceQuality "1"]
[TimeControl "40/5400+30:900+30"]

1. d4 {[%emt 0:02:30]} Nf6 {[%emt 0:00:11]} 2. c4 {[%emt 0:00:45]} e6 {[%emt 0:00:06]} 3. Nf3 {[%emt 0:00:45]} d5 {[%emt 0:00:09]} 4. Nc3 {[%emt 0:01:27]} Bb4 {[%emt 0:03:53]} 5. cxd5 {[%emt 0:04:26]} exd5 {[%emt 0:00:49]} 6. Qa4+ {[%emt 0:00:12]} Nc6 {[%emt 0:00:05]} 7. Bg5 {[%emt 0:05:44]} h6 {[%emt 0:00:08]} 8. Bxf6 {[%emt 0:00:07]} Qxf6 {[%emt 0:00:01]} 9. e3 {[%emt 0:00:15]} O-O {[%emt 0:00:18]} 10. Be2 {[%emt 0:10:35]} Be6 {[%emt 0:01:09]} 11. O-O {[%emt 0:00:31]} a6 {[%emt 0:00:03]} 12. Rfc1 {[%emt 0:04:08]} Bd6 {[%emt 0:01:07]} 13. Qd1 {[%emt 0:06:10]} Ne7 {[%emt 0:03:53]} 14. g3 {[%emt 0:03:04]} g5 {[%emt 0:05:30]} 15. e4 {[%emt 0:07:46]} dxe4 {[%emt 0:06:24]} 16. Nxe4 {[%emt 0:00:03]} Qg7 {[%emt 0:00:19]} 17. Nxd6 {[%emt 0:06:24]} cxd6 {[%emt 0:00:07]} 18. d5 {[%emt 0:00:07]} Bxd5 {[%emt 0:04:13]} 19. Rc7 {[%emt 0:06:37]} Rfe8 {[%emt 0:03:53]} 20. Nd4 {[%emt 0:01:42]} Qe5 {[%emt 0:14:54]} 21. Bg4 {[%emt 0:16:02]} 0-1

[Event "Romanian-ch Open 2022"]
[Site "Eforie Nord"]
[Date "2022.02.26"]
[Round "8.8"]
[White "Stoleriu, George"]
[Black "Manea, Alexandru"]
[Result "1/2-1/2"]
[ECO "A07"]
[WhiteElo "2419"]
[BlackElo "2355"]
[Annotator "NA"]
[PlyCount "105"]
[EventDate "2022.02.20"]
[EventType "swiss"]
[EventCountry "ROU"]
[SourceTitle "playchess.com"]
[Source "ChessBase"]
[SourceQuality "1"]
[TimeControl "40/5400+30:900+30"]

1. Nf3 {[%emt 0:02:39]} d5 {[%emt 0:02:01]} 2. b3 {[%emt 0:00:09]} Bf5 {[%emt 0:01:17]} 3. Bb2 {[%emt 0:00:06]} e6 {[%emt 0:00:06]} 4. g3 {[%emt 0:00:03]} Nf6 {[%emt 0:00:06]} 5. Bg2 {[%emt 0:00:04]} h6 {[%emt 0:00:05]} 6. O-O {[%emt 0:00:04]} Nbd7 {[%emt 0:00:04]} 7. d3 {[%emt 0:00:05]} Be7 {[%emt 0:00:41]} 8. Nbd2 {[%emt 0:01:10]} O-O {[%emt 0:00:33]} 9. Re1 {[%emt 0:00:27]} c6 {[%emt 0:00:16]} 10. h3 {[%emt 0:05:15]} Bh7 {[%emt 0:00:48]} 11. e4 {[%emt 0:03:12]} Ne8 {[%emt 0:10:57]} 12. Qe2 {[%emt 0:01:44]} Nd6 {[%emt 0:01:41]} 13. Nh2 {[%emt 0:02:15]} Re8 {[%emt 0:17:14]} 14. f4 {[%emt 0:09:26]} Nb5 {[%emt 0:11:25]} 15. a4 {[%emt 0:07:07]} Bc5+ {[%emt 0:06:21]} 16. Kh1 {[%emt 0:00:04] [#]} Bd4 $1 {[%emt 0:00:10]} 17. Bxd4 {[%emt 0:04:19]} Nxd4 {[%emt 0:00:37]} 18. Qd1 {[%emt 0:00:02]} Qa5 {[%emt 0:02:34]} 19. Rc1 $11 {[%emt 0:01:46]} Qc3 {[%emt 0:20:59]} 20. Nb1 {[%emt 0:15:02]} Qb2 {[%emt 0:00:08]} 21. b4 {[%emt 0:00:44]} dxe4 {[%emt 0:19:12]} 22. dxe4 {[%emt 0:00:57]} Nb6 {[%emt 0:00:05]} 23. c3 {[%emt 0:05:44]} Red8 {[%emt 0:01:05]} 24. cxd4 {[%emt 0:02:52]} Rxd4 {[%emt 0:00:01]} 25. Qc2 {[%emt 0:14:05]} Qxb4 {[%emt 0:00:24]} 26. f5 {[%emt 0:00:40]} Nxa4 {[%emt 0:00:35]} 27. Nf3 {[%emt 0:01:21]} Rdd8 {[%emt 0:00:54]} 28. fxe6 {[%emt 0:06:19]} fxe6 {[%emt 0:00:09]} 29. Qa2 {[%emt 0:00:04]} Nc5 {[%emt 0:00:43]} 30. Ne5 {[%emt 0:00:29]} Qb3 {[%emt 0:01:11]} 31. Qf2 {[%emt 0:00:32]} Nd3 {[%emt 0:01:07]} 32. Qf7+ {[%emt 0:00:38]} Kh8 {[%emt 0:00:01]} 33. Nxd3 {[%emt 0:13:04]} Rxd3 {[%emt 0:00:01]} 34. Kh2 {[%emt 0:00:38]} a5 {[%emt 0:00:08]} 35. Qf2 {[%emt 0:01:41]} a4 {[%emt 0:01:10]} 36. Bf1 {[%emt 0:00:45]} Rf3 {[%emt 0:01:21]} 37. Qg2 {[%emt 0:01:40]} Rf6 {[%emt 0:02:14]} 38. e5 {[%emt 0:00:38]} Rff8 {[%emt 0:00:09]} 39. Nd2 {[%emt 0:00:22]} Qb2 {[%emt 0:00:50]} 40. Nc4 {[%emt 0:00:00]} Qb4 {[%emt 0:00:00]} 41. Nd6 {[%emt 0:04:48]} Qb6 {[%emt 0:02:00]} 42. Qg1 {[%emt 0:08:06]} Qb2+ {[%emt 0:00:36]} 43. Kh1 {[%emt 0:00:06]} b5 {[%emt 0:13:12]} 44. Bg2 {[%emt 0:00:39]} a3 {[%emt 0:00:59]} 45. Bxc6 {[%emt 0:00:06]} Rab8 {[%emt 0:01:12]} 46. Bd7 {[%emt 0:03:30]} a2 {[%emt 0:00:19]} 47. Bxe6 {[%emt 0:00:15]} Bb1 {[%emt 0:00:04]} 48. Rxb1 {[%emt 0:00:43]} axb1=Q {[%emt 0:00:05]} 49. Rxb1 {[%emt 0:00:03]} Qxe5 {[%emt 0:00:13]} 50. Nf7+ {[%emt 0:00:16]} Rxf7 {[%emt 0:00:01]} 51. Bxf7 {[%emt 0:00:04]} Qe4+ {[%emt 0:00:03]} 52. Kh2 {[%emt 0:00:04]} Qc2+ {[%emt 0:00:01]} 53. Kh1 {[%emt 0:05:08]} 1/2-1/2

[Event "Romanian-ch Open 2022"]
[Site "Eforie Nord"]
[Date "2022.02.26"]
[Round "8.13"]
[White "Vajda, Albert"]
[Black "Popescu, Daniel-Vasilica"]
[Result "1-0"]
[ECO "B12"]
[WhiteElo "2351"]
[BlackElo "2064"]
[Annotator "ChessBase"]
[PlyCount "72"]
[EventDate "2022.02.20"]
[EventType "swiss"]
[EventCountry "ROU"]
[SourceTitle "playchess.com"]
[Source "ChessBase"]
[SourceQuality "1"]
[TimeControl "40/5400+30:900+30"]

1. e4 {[%emt 0:00:02]} c6 {[%emt 0:00:22]} 2. d4 {[%emt 0:00:22]} d5 {[%emt 0:00:08]} 3. e5 {[%emt 0:00:06]} c5 {[%emt 0:00:37]} 4. dxc5 {[%emt 0:00:12]} e6 {[%emt 0:00:08]} 5. a3 {[%emt 0:00:43]} Bxc5 {[%emt 0:01:00]} 6. b4 {[%emt 0:00:33]} Be7 {[%emt 0:01:14]} 7. Nf3 {[%emt 0:00:52]} Nd7 {[%emt 0:00:58]} 8. Bd3 {[%emt 0:07:59]} g5 {[%emt 0:19:33]} 9. Bb2 {[%emt 0:04:29]} h5 {[%emt 0:17:45]} 10. O-O {[%emt 0:02:30]} a6 {[%emt 0:06:14]} 11. Nbd2 {[%emt 0:06:20]} b5 {[%emt 0:07:45]} 12. a4 {[%emt 0:00:51]} bxa4 {[%emt 0:13:37]} 13. c4 {[%emt 0:10:26]} Bb7 {[%emt 0:00:05]} 14. Qxa4 {[%emt 0:03:07]} Kf8 {[%emt 0:01:21]} 15. c5 {[%emt 0:07:57]} Qc7 {[%emt 0:03:21]} 16. Nb3 {[%emt 0:04:19]} g4 {[%emt 0:03:51]} 17. Nfd4 {[%emt 0:00:58]} Nxe5 {[%emt 0:15:15]} 18. c6 {[%emt 0:00:56]} Bc8 {[%emt 0:04:40]} 19. Nb5 {[%emt 0:01:21]} axb5 {[%emt 0:00:41]} 20. Qxa8 {[%emt 0:00:36]} Bd6 {[%emt 0:01:07]} 21. Ra7 {[%emt 0:03:37]} Qd8 {[%emt 0:00:13]} 22. Bxe5 {[%emt 0:02:05]} Bxe5 {[%emt 0:00:02]} 23. c7 {[%emt 0:00:15]} Bxh2+ {[%emt 0:01:17]} 24. Kxh2 {[%emt 0:01:28]} Qh4+ {[%emt 0:00:41]} 25. Kg1 {[%emt 0:00:04]} Ne7 {[%emt 0:00:04]} 26. Nd4 {[%emt 0:04:32]} g3 {[%emt 0:00:20]} 27. Nf3 {[%emt 0:00:24]} Qf4 {[%emt 0:00:25]} 28. Ra3 {[%emt 0:05:17]} h4 {[%emt 0:00:25]} 29. Qa7 {[%emt 0:01:33]} h3 {[%emt 0:00:58]} 30. Qd4 {[%emt 0:00:42]} gxf2+ {[%emt 0:00:46]} 31. Kxf2 {[%emt 0:01:09]} Qh6 {[%emt 0:00:22]} 32. Rh1 {[%emt 0:00:44]} Rg8 {[%emt 0:00:06]} 33. Rxh3 {[%emt 0:01:13]} Qc1 {[%emt 0:00:16]} 34. Rc3 {[%emt 0:00:39]} Qd1 {[%emt 0:01:04]} 35. Rh8 {[%emt 0:01:12]} Qa1 {[%emt 0:00:44]} 36. Rxg8+ {[%emt 0:00:16]} Nxg8 {[%emt 0:00:22]} 1-0

[Event "Romanian-ch Open 2022"]
[Site "Eforie Nord"]
[Date "2022.02.26"]
[Round "8.14"]
[White "Filip, Andrei"]
[Black "Antonica, Dragos-Andrei"]
[Result "0-1"]
[ECO "B52"]
[WhiteElo "2216"]
[BlackElo "2350"]
[Annotator "ChessBase"]
[PlyCount "100"]
[EventDate "2022.02.20"]
[EventType "swiss"]
[EventCountry "ROU"]
[SourceTitle "playchess.com"]
[Source "ChessBase"]
[SourceQuality "1"]
[TimeControl "40/5400+30:900+30"]

1. e4 {[%emt 0:00:02]} c5 {[%emt 0:00:25]} 2. Nf3 {[%emt 0:00:14]} d6 {[%emt 0:00:05]} 3. Bb5+ {[%emt 0:00:10]} Bd7 {[%emt 0:00:07]} 4. Bxd7+ {[%emt 0:00:07]} Qxd7 {[%emt 0:00:05]} 5. c4 {[%emt 0:00:06]} Nf6 {[%emt 0:00:13]} 6. Nc3 {[%emt 0:00:06]} Nc6 {[%emt 0:00:19]} 7. d4 {[%emt 0:00:47]} cxd4 {[%emt 0:00:23]} 8. Nxd4 {[%emt 0:00:07]} g6 {[%emt 0:00:11]} 9. f3 {[%emt 0:00:21]} Bg7 {[%emt 0:00:05]} 10. Be3 {[%emt 0:00:08]} O-O {[%emt 0:00:13]} 11. O-O {[%emt 0:00:06]} a6 {[%emt 0:00:47]} 12. a4 {[%emt 0:02:44]} e6 {[%emt 0:04:55]} 13. Qd2 {[%emt 0:02:08]} Na5 {[%emt 0:09:46]} 14. Qd3 {[%emt 0:10:46]} Rfc8 {[%emt 0:14:07]} 15. b3 {[%emt 0:06:43]} e5 {[%emt 0:09:16]} 16. Nde2 {[%emt 0:00:23]} Nxb3 {[%emt 0:00:15]} 17. Rad1 {[%emt 0:00:16]} Qc6 {[%emt 0:17:29]} 18. Qxd6 {[%emt 0:08:04]} Qxd6 {[%emt 0:05:45]} 19. Rxd6 {[%emt 0:00:14]} Na5 {[%emt 0:00:06]} 20. Bg5 {[%emt 0:09:51]} Ne8 {[%emt 0:08:22]} 21. Rd7 {[%emt 0:01:01]} Rxc4 {[%emt 0:07:38]} 22. Rfd1 {[%emt 0:08:28]} Bf8 {[%emt 0:02:43]} 23. Kf1 {[%emt 0:06:20]} Rb8 {[%emt 0:02:45]} 24. Rb1 {[%emt 0:08:22]} Rc7 {[%emt 0:04:05]} 25. Rd8 {[%emt 0:01:48]} Rcc8 {[%emt 0:00:00]} 26. Rd7 {[%emt 0:02:25]} Nc7 {[%emt 0:04:52]} 27. Rb6 {[%emt 0:12:46]} Ne6 {[%emt 0:01:28]} 28. Bf6 {[%emt 0:00:35]} Nc5 {[%emt 0:00:46]} 29. Rd5 {[%emt 0:04:15]} Nc4 {[%emt 0:00:31]} 30. Rb1 {[%emt 0:00:21]} Ne3+ {[%emt 0:00:42]} 31. Ke1 {[%emt 0:00:37]} Nxd5 {[%emt 0:00:35]} 32. exd5 {[%emt 0:00:40]} b5 {[%emt 0:01:35]} 33. axb5 {[%emt 0:00:22]} axb5 {[%emt 0:00:11]} 34. Rxb5 {[%emt 0:00:20]} Rxb5 {[%emt 0:00:57]} 35. Nxb5 {[%emt 0:00:05]} Nd7 {[%emt 0:00:45]} 36. Bh4 {[%emt 0:00:19]} Bb4+ {[%emt 0:00:39]} 37. Kf2 {[%emt 0:00:24]} Rc5 {[%emt 0:00:22]} 38. Nd6 {[%emt 0:00:55]} Rxd5 {[%emt 0:00:20]} 39. Nc4 {[%emt 0:01:08]} f5 {[%emt 0:00:27]} 40. Bg5 {[%emt 0:00:00]} Kf7 {[%emt 0:00:00]} 41. Be3 {[%emt 0:00:29]} Ke6 {[%emt 0:00:47]} 42. f4 {[%emt 0:01:16]} e4 {[%emt 0:00:53]} 43. Nd4+ {[%emt 0:00:05]} Kf6 {[%emt 0:01:37]} 44. Nb3 {[%emt 0:00:21]} Bc5 {[%emt 0:02:30]} 45. Nxc5 {[%emt 0:00:28]} Nxc5 {[%emt 0:00:03]} 46. Nb6 {[%emt 0:00:19]} Nd3+ {[%emt 0:00:09]} 47. Ke2 {[%emt 0:00:05]} Rb5 {[%emt 0:00:14]} 48. Bd4+ {[%emt 0:00:19]} Ke6 {[%emt 0:00:10]} 49. g3 {[%emt 0:00:48]} Ra5 {[%emt 0:00:51]} 50. Nc4 {[%emt 0:00:12]} Ra4 {[%emt 0:00:09]} 0-1

[Event "Romanian-ch Open 2022"]
[Site "Eforie Nord"]
[Date "2022.02.26"]
[Round "8.15"]
[White "Nastore, Pavel-Alexandru"]
[Black "Coca, Cristi-Iulian"]
[Result "1-0"]
[ECO "C41"]
[WhiteElo "2306"]
[BlackElo "2147"]
[Annotator "NA"]
[PlyCount "76"]
[EventDate "2022.02.20"]
[EventType "swiss"]
[EventCountry "ROU"]
[SourceTitle "playchess.com"]
[Source "ChessBase"]
[SourceQuality "1"]
[TimeControl "40/5400+30:900+30"]

1. e4 {[%emt 0:00:04]} d6 {[%emt 0:00:04]} 2. d4 {[%emt 0:00:06]} Nf6 {[%emt 0:00:03]} 3. Nc3 {[%emt 0:00:05]} Nbd7 {[%emt 0:00:03]} 4. Nf3 {[%emt 0:05:22]} e5 {[%emt 0:02:15]} 5. Be2 {[%emt 0:02:48]} Be7 {[%emt 0:01:07]} 6. O-O {[%emt 0:00:20]} O-O {[%emt 0:00:05]} 7. Re1 {[%emt 0:00:27]} c6 {[%emt 0:00:51]} 8. a4 {[%emt 0:00:35]} Re8 {[%emt 0:00:37]} 9. Bf1 {[%emt 0:01:12]} Bf8 {[%emt 0:00:20]} 10. g3 {[%emt 0:18:07]} Qc7 {[%emt 0:03:48]} 11. Bg2 {[%emt 0:03:28]} a5 {[%emt 0:02:46]} 12. h3 {[%emt 0:00:49]} h6 {[%emt 0:07:40]} 13. Be3 {[%emt 0:11:13]} Nb6 {[%emt 0:16:25]} 14. Nd2 {[%emt 0:01:58]} Nh7 {[%emt 0:07:45]} 15. f4 {[%emt 0:10:17]} exf4 {[%emt 0:07:47]} 16. gxf4 {[%emt 0:07:03]} d5 {[%emt 0:10:10]} 17. e5 {[%emt 0:03:57]} Bf5 {[%emt 0:11:00]} 18. Ne2 {[%emt 0:06:15]} Qd7 {[%emt 0:00:59]} 19. Kh2 {[%emt 0:00:34]} Rac8 {[%emt 0:00:31]} 20. Ng3 {[%emt 0:02:56]} c5 {[%emt 0:01:13]} 21. Nxf5 {[%emt 0:05:33]} Qxf5 {[%emt 0:02:00]} 22. Nb3 {[%emt 0:06:35]} cxd4 {[%emt 0:15:30]} 23. Qxd4 {[%emt 0:04:59]} Nc4 {[%emt 0:02:21]} 24. Re2 {[%emt 0:06:33]} Nxe3 {[%emt 0:01:53]} 25. Qxe3 {[%emt 0:00:00]} Rxc2 {[%emt 0:00:44]} 26. Rae1 {[%emt 0:01:40]} Rxe2 {[%emt 0:01:07]} 27. Rxe2 {[%emt 0:00:01]} Nf6 {[%emt 0:03:24]} 28. Nxa5 {[%emt 0:00:28]} Nh5 {[%emt 0:00:42]} 29. Rf2 {[%emt 0:00:51]} Ra8 {[%emt 0:01:08]} 30. Nxb7 {[%emt 0:00:31]} Rxa4 {[%emt 0:00:32]} 31. Bxd5 {[%emt 0:00:39]} Rxf4 {[%emt 0:00:24]} 32. Rxf4 {[%emt 0:00:26]} Nxf4 {[%emt 0:00:04]} 33. Bb3 {[%emt 0:00:19]} Ne6 {[%emt 0:01:07]} 34. Nd6 {[%emt 0:00:48]} Qb1 {[%emt 0:00:18]} 35. Qe2 {[%emt 0:00:27]} Qc1 {[%emt 0:00:36]} 36. Qf2 {[%emt 0:00:27]} Bxd6 {[%emt 0:01:11]} 37. exd6 {[%emt 0:01:07]} Qf4+ {[%emt 0:00:30]} 38. Qxf4 {[%emt 0:00:30]} Nxf4 {[%emt 0:00:30]} 1-0

[Event "Romanian-ch Open 2022"]
[Site "Eforie Nord"]
[Date "2022.02.26"]
[Round "8.16"]
[White "Radu, David Cr."]
[Black "Doncea, Vladimir"]
[Result "1-0"]
[ECO "B07"]
[WhiteElo "1960"]
[BlackElo "2367"]
[Annotator "ChessBase"]
[PlyCount "51"]
[EventDate "2022.02.20"]
[EventType "swiss"]
[EventCountry "ROU"]
[SourceTitle "playchess.com"]
[Source "ChessBase"]
[SourceQuality "1"]
[TimeControl "40/5400+30:900+30"]

1. e4 {[%emt 0:00:11]} c5 {[%emt 0:00:10]} 2. c3 {[%emt 0:01:28]} d6 {[%emt 0:00:19]} 3. d4 {[%emt 0:01:52]} Nf6 {[%emt 0:00:09]} 4. Bd3 {[%emt 0:02:37]} Qc7 {[%emt 0:00:26]} 5. Nf3 {[%emt 0:01:23]} g6 {[%emt 0:00:16]} 6. O-O {[%emt 0:04:59]} Bg7 {[%emt 0:00:07]} 7. h3 {[%emt 0:02:14]} O-O {[%emt 0:00:09]} 8. a4 {[%emt 0:04:45]} Nc6 {[%emt 0:02:04]} 9. Na3 {[%emt 0:08:25]} a6 {[%emt 0:08:43]} 10. Re1 {[%emt 0:05:41]} e5 {[%emt 0:07:13]} 11. Bg5 {[%emt 0:15:17]} exd4 {[%emt 0:04:52]} 12. cxd4 {[%emt 0:00:24]} Nxd4 {[%emt 0:00:28]} 13. Nxd4 {[%emt 0:00:32]} cxd4 {[%emt 0:00:06]} 14. Rc1 {[%emt 0:00:08]} Qa5 {[%emt 0:01:36]} 15. Bf4 {[%emt 0:05:45]} d5 {[%emt 0:01:55]} 16. Bd6 {[%emt 0:06:23]} Re8 {[%emt 0:00:29]} 17. e5 {[%emt 0:03:55]} Ne4 {[%emt 0:14:38]} 18. Bxe4 {[%emt 0:06:16]} dxe4 {[%emt 0:03:20]} 19. Nc4 {[%emt 0:00:46]} Qd8 {[%emt 0:00:35]} 20. Qxd4 {[%emt 0:00:22]} b5 {[%emt 0:03:38]} 21. Nb6 {[%emt 0:03:54]} Rb8 {[%emt 0:00:09]} 22. Nd5 {[%emt 0:03:00]} Rb7 {[%emt 0:01:31]} 23. Qxe4 {[%emt 0:05:47]} Qg5 {[%emt 0:03:33]} 24. Rxc8 {[%emt 0:03:00]} Rxc8 {[%emt 0:00:14]} 25. Nf6+ {[%emt 0:00:04]} Bxf6 {[%emt 0:00:20]} 26. exf6 {[%emt 0:14:22]} 1-0

[Event "Romanian-ch Open 2022"]
[Site "Eforie Nord"]
[Date "2022.02.26"]
[Round "8.17"]
[White "Dobre, Claudiu-Cristian"]
[Black "Daianu, Cristian-Clement"]
[Result "1/2-1/2"]
[ECO "A21"]
[WhiteElo "2298"]
[BlackElo "2171"]
[Annotator "NA"]
[PlyCount "103"]
[EventDate "2022.02.20"]
[EventType "swiss"]
[EventCountry "ROU"]
[SourceTitle "playchess.com"]
[Source "ChessBase"]
[SourceQuality "1"]
[TimeControl "40/5400+30:900+30"]

1. Nf3 {[%emt 0:00:04]} d6 {[%emt 0:02:39]} 2. c4 {[%emt 0:00:08]} f5 {[%emt 0:00:09]} 3. Nc3 {[%emt 0:00:11]} Nf6 {[%emt 0:00:11]} 4. g3 {[%emt 0:02:26]} e5 {[%emt 0:15:35]} 5. d3 {[%emt 0:00:09]} Be7 {[%emt 0:00:35]} 6. Bg2 {[%emt 0:11:35]} O-O {[%emt 0:04:38]} 7. b4 {[%emt 0:00:53]} c6 {[%emt 0:04:00]} 8. Qb3 {[%emt 0:01:05]} Kh8 {[%emt 0:00:47]} 9. d4 {[%emt 0:26:46]} e4 {[%emt 0:21:26]} 10. Ng1 {[%emt 0:24:13]} Be6 {[%emt 0:12:19]} 11. d5 {[%emt 0:01:22]} Bg8 {[%emt 0:03:34]} 12. Nh3 {[%emt 0:00:45]} b5 {[%emt 0:02:12]} 13. cxb5 {[%emt 0:03:50]} Nxd5 {[%emt 0:00:40]} 14. Nxd5 {[%emt 0:00:39]} Bxd5 {[%emt 0:01:06]} 15. Qc2 {[%emt 0:11:49]} cxb5 {[%emt 0:04:25]} 16. Nf4 {[%emt 0:00:18]} Bc4 {[%emt 0:01:04]} 17. Bb2 {[%emt 0:01:05]} Bf6 {[%emt 0:03:24]} 18. O-O {[%emt 0:00:21]} Nc6 {[%emt 0:00:50]} 19. Bxf6 {[%emt 0:10:10]} Qxf6 {[%emt 0:00:38]} 20. Qd2 {[%emt 0:00:43]} d5 {[%emt 0:02:58]} 21. f3 {[%emt 0:00:32]} Rad8 {[%emt 0:07:42]} 22. h4 {[%emt 0:01:07]} Qd4+ {[%emt 0:01:23]} 23. Qxd4 {[%emt 0:00:06]} Nxd4 {[%emt 0:00:06]} 24. Kf2 {[%emt 0:01:05]} e3+ {[%emt 0:02:49]} 25. Kxe3 {[%emt 0:00:22]} Nc2+ {[%emt 0:00:04]} 26. Kd2 {[%emt 0:00:12]} Nxa1 {[%emt 0:00:06]} 27. Rxa1 {[%emt 0:00:26]} Rfe8 {[%emt 0:00:52]} 28. h5 {[%emt 0:01:07]} d4 {[%emt 0:00:26]} 29. Bh3 {[%emt 0:00:29]} Re5 {[%emt 0:01:07]} 30. a4 {[%emt 0:00:49]} a6 {[%emt 0:04:50]} 31. axb5 {[%emt 0:00:05]} Bxb5 {[%emt 0:00:13]} 32. Rc1 {[%emt 0:00:11]} Rde8 {[%emt 0:00:29]} 33. Bf1 {[%emt 0:00:54]} Re3 {[%emt 0:00:20]} 34. Rc7 {[%emt 0:00:48]} R3e7 {[%emt 0:02:10]} 35. Rc5 {[%emt 0:00:23]} Re5 {[%emt 0:00:12]} 36. Rc7 {[%emt 0:00:31]} Kg8 {[%emt 0:00:06]} 37. h6 {[%emt 0:00:23]} R5e7 {[%emt 0:00:40]} 38. Rc5 {[%emt 0:00:33]} Re5 {[%emt 0:01:11]} 39. Rc7 {[%emt 0:00:17]} R8e7 {[%emt 0:00:15]} 40. Rc8+ {[%emt 0:00:00]} Re8 {[%emt 0:00:00]} 41. Rc7 {[%emt 0:00:53]} g6 {[%emt 0:01:31]} 42. Rb7 {[%emt 0:06:33]} R8e7 {[%emt 0:06:43]} 43. Rb8+ {[%emt 0:01:59]} Kf7 {[%emt 0:00:10]} 44. Rb6 {[%emt 0:03:33]} Ke8 {[%emt 0:04:10]} 45. Nxg6 {[%emt 0:00:55]} hxg6 {[%emt 0:00:50]} 46. Rb8+ {[%emt 0:00:09]} Kd7 {[%emt 0:05:41]} 47. h7 {[%emt 0:00:07]} Rxh7 {[%emt 0:00:39]} 48. Rb7+ {[%emt 0:00:04]} Ke6 {[%emt 0:00:17]} 49. Rxh7 {[%emt 0:00:07]} Re3 {[%emt 0:00:04]} 50. Rh6 {[%emt 0:03:48]} Kf6 {[%emt 0:00:51]} 51. Rh4 {[%emt 0:01:02]} Ke5 {[%emt 0:00:05]} 52. Rh6 {[%emt 0:01:17]} 1/2-1/2